fUST/lending_fUST_20250114
["ID","MTS","AMOUNT","RATE_DAILY","PERIOD"]
[348903447,1736868644408,-1000.0,0.00022054,7]
[348903448,1736868644417,-1623.19,0.00022054,3]
[348903449,1736868644427,-500.0,0.00022054,3]
[348903450,1736868644436,-500.0,0.00022054,3]
[348903451,1736868644445,-1291.14,0.00022054,3]
[348903453,1736868644455,-964.02616037,0.00022067,2]
[348903455,1736868644464,-211.01606803,0.00022107,2]
[348903457,1736868644473,-2070.0,0.00022124,2]
[348903459,1736868644482,-535.0,0.00022124,2]
[348903461,1736868644491,-2312.0,0.00022124,2]
[348903463,1736868644501,-1200.0,0.00022172,2]
[348903465,1736868644510,-624.34184045,0.00022173,2]
[348903467,1736868644519,-500.0,0.00022173,2]
[348903469,1736868644528,-500.0,0.00022173,2]
[348903471,1736868644538,-429.04965973,0.00022173,2]
[348903473,1736868644547,-500.0,0.00022173,2]
[348903475,1736868644557,-500.0,0.00022173,2]
[348903477,1736868644566,-500.0,0.00022173,2]
[348903479,1736868644575,-500.0,0.00022173,2]
[348903481,1736868644584,-500.0,0.00022173,2]
[348903483,1736868644594,-502.71263396,0.00022173,2]
[348903485,1736868644603,-500.0,0.00022173,2]
[348903487,1736868644612,-329.29980822,0.00022173,2]
[348903489,1736868644621,-500.0,0.00022173,2]
[348903491,1736868644631,-211.01606803,0.00022176,2]
[348903493,1736868644640,-151.0,0.00022191,7]
[348903495,1736868644649,-500.0,0.00022191,3]
[348903497,1736868644658,-500.0,0.00022191,3]
[348903500,1736868644669,-500.0,0.00022191,3]
[348903501,1736868644679,-500.0,0.00022191,3]
[348903503,1736868644688,-303.15917089,0.00022191,3]
[348903505,1736868644698,-191.86091372,0.00022191,3]
[348903507,1736868644707,-500.0,0.00022191,3]
[348903509,1736868644716,-500.0,0.00022191,3]
[348903511,1736868644725,-500.0,0.00022191,3]
[348903513,1736868644734,-500.0,0.00022191,3]
[348903515,1736868644744,-500.0,0.00022191,3]
[348903517,1736868644753,-500.0,0.00022191,3]
[348903519,1736868644762,-500.0,0.00022191,3]
[348903521,1736868644771,-500.0,0.00022191,3]
[348903523,1736868644781,-500.0,0.00022191,3]
[348903525,1736868644790,-500.0,0.00022191,3]
[348903527,1736868644800,-500.0,0.00022191,3]
[348903529,1736868644809,-533.09515519,0.00022191,3]
[348903531,1736868644819,-554.6,0.00022191,3]
[348903533,1736868644828,-151.0,0.00022191,7]
[348903535,1736868644837,-151.0,0.00022191,7]
[348903537,1736868644847,-3932.12,0.00022191,3]
[348903539,1736868644859,-3768.28,0.00022191,3]
[348903541,1736868644868,-645.48,0.00022191,3]
[348903543,1736868644877,-1202.4,0.00022191,3]
[348903545,1736868644887,-779.88,0.00022191,3]
[348903547,1736868644896,-612.07,0.00022191,3]
[348903549,1736868644906,-500.0,0.00022191,3]
[348903550,1736868644915,-500.0,0.00022191,3]
[348903553,1736868644925,-793.51,0.00022191,3]
[348903555,1736868644934,-546.51,0.00022191,3]
[348903557,1736868644944,-571.65,0.00022191,3]
[348903559,1736868644953,-534.63,0.00022191,3]
[348903560,1736868644963,-500.0,0.00022191,3]
[348903563,1736868644974,-500.0,0.00022191,3]
[348903565,1736868644984,-615.92,0.00022191,3]
[348903567,1736868644994,-500.0,0.00022191,3]
[348903569,1736868645003,-500.0,0.00022191,3]
[348903571,1736868645013,-636.0234188,0.00022191,3]
[348903573,1736868645022,-500.0,0.00022191,3]
[348903575,1736868645032,-500.0,0.00022191,3]
[348903577,1736868645042,-414.4185829,0.00022191,3]
[348903579,1736868645053,-500.0,0.00022191,3]
[348903580,1736868645063,-500.0,0.00022191,3]
[348903583,1736868645073,-572.53,0.00022191,3]
[348903584,1736868645083,-265.37141015,0.00022191,3]
[348903586,1736868645094,-1372.86,0.00022191,3]
[348903588,1736868645103,-472.47171797,0.00022191,3]
[348903590,1736868645122,-500.0,0.00022191,3]
[348903592,1736868645131,-500.0,0.00022191,3]
[348903594,1736868645142,-500.0,0.00022191,3]
[348903596,1736868645154,-500.0,0.00022191,3]
[348903598,1736868645163,-500.0,0.00022191,3]
[348903600,1736868645173,-850.61,0.00022191,3]
[348903602,1736868645182,-552.33,0.00022191,3]
[348903604,1736868645192,-6280.18,0.00022191,3]
[348903606,1736868645202,-500.0,0.00022191,3]
[348903608,1736868645211,-500.0,0.00022191,3]
[348903610,1736868645220,-500.0,0.00022191,3]
[348903612,1736868645229,-513.5,0.00022191,3]
[348903614,1736868645239,-80826.18305866,0.00022191,3]
[348903690,1736868645932,-19230.21694134,0.00022191,3]
[348903692,1736868645946,-733.01,0.00022191,3]
[348903695,1736868645959,-500.0,0.00022191,3]
[348903697,1736868645971,-1030.31,0.00022191,3]
[348903699,1736868645983,-500.0,0.00022191,3]
[348903702,1736868645995,-500.0,0.00022191,3]
[348903704,1736868646007,-500.0,0.00022191,3]
[348903706,1736868646020,-500.0,0.00022191,3]
[348903708,1736868646033,-427.4922898,0.00022191,3]
[348903710,1736868646045,-795.65,0.00022191,3]
[348903713,1736868646057,-500.0,0.00022191,3]
[348903715,1736868646067,-500.0,0.00022191,3]
[348903717,1736868646078,-807.22,0.00022191,3]
[348903719,1736868646090,-511.75,0.00022191,3]
[348903722,1736868646102,-958.11,0.00022191,3]
[348903724,1736868646121,-624.77,0.00022191,3]
[348903726,1736868646132,-594.49,0.00022191,3]
[348903728,1736868646145,-723.78,0.00022191,3]
[348903731,1736868646156,-1126.39,0.00022191,3]
[348903735,1736868646171,-500.0,0.00022191,3]
[348903739,1736868646183,-500.0,0.00022191,3]
[348903743,1736868646198,-500.0,0.00022191,3]
[348903746,1736868646212,-500.0,0.00022191,3]
[348903749,1736868646223,-172.97573916,0.00022191,3]
[348903751,1736868646233,-1354.68,0.00022191,3]
[348903753,1736868646244,-670.2,0.00022191,3]
[348903755,1736868646255,-5829.81,0.00022191,3]
[348903758,1736868646268,-500.0,0.00022191,3]
[348903760,1736868646281,-861.16,0.00022191,3]
[348903762,1736868646295,-500.0,0.00022191,3]
[348903765,1736868646308,-500.0,0.00022191,3]
[348903767,1736868646318,-500.0,0.00022191,3]
[348903769,1736868646329,-500.0,0.00022191,3]
[348903771,1736868646342,-514.92807333,0.00022191,3]
[348903774,1736868646354,-500.0,0.00022191,3]
[348903776,1736868646375,-15446.98,0.00022191,2]
[348903778,1736868646388,-151.0,0.00022191,7]
[348903780,1736868646400,-809.13,0.00022191,3]
[348903782,1736868646411,-500.0,0.00022191,3]
[348903785,1736868646423,-500.0,0.00022191,3]
[348903787,1736868646434,-500.0,0.00022191,3]
[348903789,1736868646444,-819.78,0.00022191,3]
[348903791,1736868646455,-500.0,0.00022191,3]
[348903793,1736868646466,-2258.25,0.00022191,3]
[348903795,1736868646482,-2645.94,0.00022191,2]
[348903798,1736868646494,-500.0,0.00022191,3]
[348903800,1736868646505,-3943.85,0.00022191,3]
[348903802,1736868646516,-679.18,0.00022191,3]
[348903804,1736868646527,-151.0,0.00022191,7]
[348903807,1736868646538,-151.0,0.00022191,7]
[348903809,1736868646549,-28763.14,0.00022191,3]
[348903811,1736868646560,-500.0,0.00022191,3]
[348903813,1736868646570,-500.0,0.00022191,3]
[348903815,1736868646581,-500.0,0.00022191,3]
[348903817,1736868646592,-1183.34,0.00022191,3]
[348903820,1736868646603,-500.0,0.00022191,3]
[348903822,1736868646618,-500.0,0.00022191,3]
[348903824,1736868646629,-451.03982826,0.00022191,3]
[348903826,1736868646641,-627.75,0.00022191,3]
[348903828,1736868646652,-654.14,0.00022191,3]
[348903831,1736868646663,-500.0,0.00022191,3]
[348903833,1736868646674,-500.0,0.00022191,3]
[348903835,1736868646685,-1551.26,0.00022191,3]
[348903837,1736868646696,-500.0,0.00022191,3]
[348903839,1736868646706,-500.0,0.00022191,3]
[348903841,1736868646717,-958.77,0.00022191,3]
[348903844,1736868646729,-1475.28,0.00022191,3]
[348903846,1736868646741,-500.0,0.00022191,3]
[348903848,1736868646752,-647.9,0.00022191,3]
[348903850,1736868646762,-581.2,0.00022191,3]
[348903853,1736868646774,-1195.31,0.00022191,3]
[348903855,1736868646785,-500.0,0.00022191,3]
[348903857,1736868646796,-500.0,0.00022191,3]
[348903859,1736868646807,-500.0,0.00022191,3]
[348903861,1736868646818,-500.0,0.00022191,3]
[348903863,1736868646829,-500.0,0.00022191,3]
[348903866,1736868646840,-500.0,0.00022191,3]
[348903868,1736868646851,-656.19,0.00022191,3]
[348903870,1736868646865,-2389.46,0.00022191,3]
[348903872,1736868646876,-636.07,0.00022191,3]
[348903874,1736868646887,-500.0,0.00022191,3]
[348903876,1736868646898,-2727.96,0.00022191,3]
[348903879,1736868646910,-500.0,0.00022191,3]
[348903881,1736868646921,-1358.32,0.00022191,3]
[348903883,1736868646933,-500.0,0.00022191,3]
[348903885,1736868646944,-1127.51,0.00022191,3]
[348903888,1736868646956,-1000.0,0.00022191,7]
[348903890,1736868646967,-1623.19,0.00022191,3]
[348903892,1736868646980,-500.0,0.00022191,3]
[348903894,1736868646992,-500.0,0.00022191,3]
[348903896,1736868647003,-1291.14,0.00022191,3]
[348903899,1736868647014,-157.64212627,0.00022228,2]
[348903901,1736868647025,-318.40861021,0.0002224,2]
[348903903,1736868647034,-211.01606803,0.00022245,2]
[348903904,1736868647044,-211.01606803,0.00022314,2]
[348903907,1736868647054,-964.02616037,0.00022318,2]
[348903908,1736868647063,-151.96,0.00022328,2]
[348903910,1736868647073,-420.01834256,0.00022328,3]
[348903913,1736868647084,-500.0,0.00022328,3]
[348903915,1736868647094,-500.0,0.00022328,3]
[348903917,1736868647103,-500.0,0.00022328,3]
[348903918,1736868647120,-590.81683659,0.00022328,3]
[348903920,1736868647129,-500.0,0.00022328,3]
[348903922,1736868647139,-500.0,0.00022328,3]
[348903924,1736868647149,-500.0,0.00022328,3]
[348903926,1736868647162,-500.0,0.00022328,3]
[348903928,1736868647172,-500.0,0.00022328,3]
[348903931,1736868647182,-500.0,0.00022328,3]
[348903932,1736868647192,-500.0,0.00022328,3]
[348903934,1736868647202,-500.0,0.00022328,3]
[348903936,1736868647211,-500.0,0.00022328,3]
[348903938,1736868647221,-500.0,0.00022328,3]
[348903941,1736868647231,-554.6,0.00022328,3]
[348903942,1736868647240,-208.150282,0.00022328,7]
[348903944,1736868647250,-3932.12,0.00022328,3]
[348903946,1736868647260,-3768.28,0.00022328,3]
[348903948,1736868647270,-645.48,0.00022328,3]
[348903950,1736868647280,-1202.4,0.00022328,3]
[348903952,1736868647290,-779.88,0.00022328,3]
[348903974,1736868647523,-612.07,0.00022328,3]
[348903975,1736868647541,-500.0,0.00022328,3]
[348903976,1736868647552,-500.0,0.00022328,3]
[348903977,1736868647563,-793.51,0.00022328,3]
[348903978,1736868647573,-546.51,0.00022328,3]
[348903979,1736868647583,-571.65,0.00022328,3]
[348903980,1736868647592,-534.63,0.00022328,3]
[348903981,1736868647602,-500.0,0.00022328,3]
[348903982,1736868647616,-500.0,0.00022328,3]
[348903983,1736868647626,-615.92,0.00022328,3]
[348903984,1736868647635,-500.0,0.00022328,3]
[348903985,1736868647645,-500.0,0.00022328,3]
[348903986,1736868647654,-500.0,0.00022328,3]
[348903987,1736868647663,-500.0,0.00022328,3]
[348903988,1736868647673,-500.0,0.00022328,3]
[348903990,1736868647684,-572.53,0.00022328,3]
[348903992,1736868647693,-500.0,0.00022328,3]
[348903994,1736868647705,-1372.86,0.00022328,3]
[348903996,1736868647714,-500.0,0.00022328,3]
[348903998,1736868647727,-500.0,0.00022328,3]
[348904000,1736868647736,-500.0,0.00022328,3]
[348904002,1736868647745,-280.82726211,0.00022328,3]
[348904004,1736868647756,-500.0,0.00022328,3]
[348904006,1736868647766,-850.61,0.00022328,3]
[348904008,1736868647777,-552.33,0.00022328,3]
[348904010,1736868647786,-6280.18,0.00022328,3]
[348904012,1736868647796,-500.0,0.00022328,3]
[348904014,1736868647806,-500.0,0.00022328,3]
[348904016,1736868647816,-513.5,0.00022328,3]
[348904018,1736868647825,-100056.4,0.00022328,3]
[348904019,1736868647834,-733.01,0.00022328,3]
[348904021,1736868647843,-500.0,0.00022328,3]
[348904023,1736868647853,-1030.31,0.00022328,3]
[348904026,1736868647865,-500.0,0.00022328,3]
[348904027,1736868647874,-500.0,0.00022328,3]
[348904029,1736868647883,-408.02500214,0.00022328,3]
[348904031,1736868647893,-500.0,0.00022328,3]
[348904033,1736868647903,-795.65,0.00022328,3]
[348904035,1736868647913,-500.0,0.00022328,3]
[348904037,1736868647922,-500.0,0.00022328,3]
[348904039,1736868647932,-807.22,0.00022328,3]
[348904041,1736868647943,-511.75,0.00022328,3]
[348904043,1736868647953,-958.11,0.00022328,3]
[348904045,1736868647962,-624.77,0.00022328,3]
[348904047,1736868647971,-594.49,0.00022328,3]
[348904048,1736868647980,-1126.39,0.00022328,3]
[348904049,1736868647990,-500.0,0.00022328,3]
[348904050,1736868647999,-500.0,0.00022328,3]
[348904051,1736868648008,-500.0,0.00022328,3]
[348904052,1736868648017,-500.0,0.00022328,3]
[348904053,1736868648027,-1354.68,0.00022328,3]
[348904054,1736868648036,-670.2,0.00022328,3]
[348904055,1736868648045,-5829.81,0.00022328,3]
[348904056,1736868648055,-500.0,0.00022328,3]
[348904057,1736868648064,-861.16,0.00022328,3]
[348904058,1736868648074,-500.0,0.00022328,3]
[348904059,1736868648083,-500.0,0.00022328,3]
[348904060,1736868648093,-500.0,0.00022328,3]
[348904061,1736868648102,-500.0,0.00022328,3]
[348904062,1736868648114,-500.0,0.00022328,3]
[348904063,1736868648128,-15446.98,0.00022328,2]
[348904064,1736868648142,-500.0,0.00022328,3]
[348904065,1736868648153,-809.13,0.00022328,3]
[348904066,1736868648163,-500.0,0.00022328,3]
[348904067,1736868648172,-500.0,0.00022328,3]
[348904068,1736868648182,-819.78,0.00022328,3]
[348904069,1736868648192,-485.81362408,0.00022328,3]
[348904070,1736868648203,-2258.25,0.00022328,3]
[348904071,1736868648213,-2645.94,0.00022328,2]
[348904072,1736868648223,-500.0,0.00022328,3]
[348904073,1736868648233,-3525.66902379,0.00022328,3]
[348904074,1736868648243,-3943.85,0.00022328,3]
[348904075,1736868648252,-679.18,0.00022328,3]
[348904076,1736868648261,-151.0,0.00022328,7]
[348904077,1736868648271,-28763.14,0.00022328,3]
[348904078,1736868648283,-500.0,0.00022328,3]
[348904079,1736868648294,-500.0,0.00022328,3]
[348904080,1736868648304,-500.0,0.00022328,3]
[348904081,1736868648314,-1183.34,0.00022328,3]
[348904082,1736868648323,-500.0,0.00022328,3]
[348904083,1736868648332,-500.0,0.00022328,3]
[348904084,1736868648342,-627.75,0.00022328,3]
[348904085,1736868648352,-654.14,0.00022328,3]
[348904086,1736868648364,-500.0,0.00022328,3]
[348904087,1736868648374,-500.0,0.00022328,3]
[348904088,1736868648386,-1551.26,0.00022328,3]
[348904089,1736868648397,-500.0,0.00022328,3]
[348904090,1736868648407,-500.0,0.00022328,3]
[348904091,1736868648417,-958.77,0.00022328,3]
[348904092,1736868648427,-1475.28,0.00022328,3]
[348904093,1736868648436,-500.0,0.00022328,3]
[348904094,1736868648446,-647.9,0.00022328,3]
[348904095,1736868648455,-581.2,0.00022328,3]
[348904096,1736868648465,-1195.31,0.00022328,3]
[348904097,1736868648475,-500.0,0.00022328,3]
[348904098,1736868648484,-500.0,0.00022328,3]
[348904099,1736868648493,-500.0,0.00022328,3]
[348904100,1736868648503,-500.0,0.00022328,3]
[348904101,1736868648513,-500.0,0.00022328,3]
[348904102,1736868648523,-500.0,0.00022328,3]
[348904103,1736868648533,-656.19,0.00022328,3]
[348904104,1736868648543,-2389.46,0.00022328,3]
[348904105,1736868648553,-636.07,0.00022328,3]
[348904106,1736868648562,-500.0,0.00022328,3]
[348904107,1736868648572,-2727.96,0.00022328,3]
[348904108,1736868648581,-500.0,0.00022328,3]
[348904109,1736868648591,-1358.32,0.00022328,3]
[348904110,1736868648601,-500.0,0.00022328,3]
[348904111,1736868648612,-1127.51,0.00022328,3]
[348904112,1736868648621,-1623.19,0.00022328,3]
[348904113,1736868648631,-500.0,0.00022328,3]
[348904114,1736868648641,-500.0,0.00022328,3]
[348904115,1736868648650,-1291.14,0.00022328,3]
[348904116,1736868648660,-270.8283276,0.00022375,2]
[348904117,1736868648669,-211.01606803,0.00022383,2]
[348904118,1736868648678,-151.0,0.000224,10]
[348904119,1736868648688,-211.01606803,0.00022452,2]
[348904120,1736868648698,-500.0,0.00022465,3]
[348904121,1736868648708,-500.0,0.00022465,3]
[348904123,1736868648718,-500.0,0.00022465,3]
[348904124,1736868648727,-500.0,0.00022465,3]
[348904125,1736868648738,-500.0,0.00022465,3]
[348904127,1736868648748,-500.0,0.00022465,3]
[348904128,1736868648758,-500.0,0.00022465,3]
[348904129,1736868648767,-500.0,0.00022465,3]
[348904130,1736868648778,-500.0,0.00022465,3]
[348904131,1736868648787,-500.0,0.00022465,3]
[348904132,1736868648798,-500.0,0.00022465,3]
[348904133,1736868648808,-500.0,0.00022465,3]
[348904134,1736868648818,-500.0,0.00022465,3]
[348904135,1736868648828,-554.6,0.00022465,3]
[348904136,1736868648837,-3932.12,0.00022465,3]
[348904137,1736868648847,-645.48,0.00022465,3]
[348904138,1736868648857,-3768.28,0.00022465,3]
[348904139,1736868648868,-1202.4,0.00022465,3]
[348904140,1736868648878,-779.88,0.00022465,3]
[348904141,1736868648889,-612.07,0.00022465,3]
[348904142,1736868648899,-500.0,0.00022465,3]
[348904143,1736868648909,-500.0,0.00022465,3]
[348904144,1736868648919,-793.51,0.00022465,3]
[348904145,1736868648929,-546.51,0.00022465,3]
[348904146,1736868648939,-571.65,0.00022465,3]
[348904147,1736868648949,-534.63,0.00022465,3]
[348904148,1736868648959,-2630.07,0.00022465,3]
[348904149,1736868648969,-500.0,0.00022465,3]
[348904150,1736868648978,-500.0,0.00022465,3]
[348904151,1736868648988,-615.92,0.00022465,3]
[348904152,1736868648998,-500.0,0.00022465,3]
[348904153,1736868649007,-500.0,0.00022465,3]
[348904154,1736868649017,-500.0,0.00022465,3]
[348904155,1736868649027,-500.0,0.00022465,3]
[348904156,1736868649037,-500.0,0.00022465,3]
[348904157,1736868649047,-572.53,0.00022465,3]
[348904158,1736868649057,-500.0,0.00022465,3]
[348904159,1736868649067,-1372.86,0.00022465,3]
[348904160,1736868649077,-500.0,0.00022465,3]
[348904162,1736868649087,-500.0,0.00022465,3]
[348904164,1736868649097,-500.0,0.00022465,3]
[348904166,1736868649107,-500.0,0.00022465,3]
[348904167,1736868649123,-850.61,0.00022465,3]
[348904168,1736868649134,-552.33,0.00022465,3]
[348904169,1736868649143,-500.0,0.00022465,3]
[348904170,1736868649155,-6280.18,0.00022465,3]
[348904171,1736868649164,-500.0,0.00022465,3]
[348904173,1736868649174,-513.5,0.00022465,3]
[348904175,1736868649184,-100056.4,0.00022465,3]
[348904177,1736868649194,-733.01,0.00022465,3]
[348904179,1736868649204,-500.0,0.00022465,3]
[348904181,1736868649213,-1030.31,0.00022465,3]
[348904182,1736868649223,-500.0,0.00022465,3]
[348904183,1736868649232,-500.0,0.00022465,3]
[348904185,1736868649242,-500.0,0.00022465,3]
[348904186,1736868649252,-795.65,0.00022465,3]
[348904187,1736868649262,-500.0,0.00022465,3]
[348904188,1736868649271,-500.0,0.00022465,3]
[348904189,1736868649281,-807.22,0.00022465,3]
[348904191,1736868649292,-958.11,0.00022465,3]
[348904192,1736868649302,-511.75,0.00022465,3]
[348904193,1736868649311,-624.77,0.00022465,3]
[348904194,1736868649321,-594.49,0.00022465,3]
[348904195,1736868649331,-1126.39,0.00022465,3]
[348904196,1736868649340,-500.0,0.00022465,3]
[348904197,1736868649351,-500.0,0.00022465,3]
[348904198,1736868649361,-500.0,0.00022465,3]
[348904199,1736868649371,-500.0,0.00022465,3]
[348904200,1736868649382,-1354.68,0.00022465,3]
[348904201,1736868649392,-670.2,0.00022465,3]
[348904202,1736868649402,-5829.81,0.00022465,3]
[348904203,1736868649412,-500.0,0.00022465,3]
[348904204,1736868649422,-861.16,0.00022465,3]
[348904205,1736868649431,-500.0,0.00022465,3]
[348904206,1736868649441,-500.0,0.00022465,3]
[348904207,1736868649451,-500.0,0.00022465,3]
[348904208,1736868649460,-500.0,0.00022465,3]
[348904209,1736868649470,-15446.98,0.00022465,2]
[348904210,1736868649480,-500.0,0.00022465,3]
[348904211,1736868649490,-809.13,0.00022465,3]
[348904212,1736868649500,-469.17660941,0.00022465,3]
[348904213,1736868649509,-500.0,0.00022465,3]
[348904214,1736868649519,-819.78,0.00022465,3]
[348904215,1736868649528,-2258.25,0.00022465,3]
[348904216,1736868649538,-2645.94,0.00022465,2]
[348904217,1736868649547,-500.0,0.00022465,3]
[348904218,1736868649557,-3943.85,0.00022465,3]
[348904219,1736868649566,-679.18,0.00022465,3]
[348904220,1736868649576,-28763.14,0.00022465,3]
[348904221,1736868649587,-500.0,0.00022465,3]
[348904222,1736868649597,-500.0,0.00022465,3]
[348904223,1736868649606,-500.0,0.00022465,3]
[348904224,1736868649618,-1183.34,0.00022465,3]
[348904225,1736868649628,-500.0,0.00022465,3]
[348904226,1736868649637,-500.0,0.00022465,3]
[348904227,1736868649646,-627.75,0.00022465,3]
[348904228,1736868649656,-654.14,0.00022465,3]
[348904229,1736868649666,-226.85778666,0.00022465,3]
[348904230,1736868649675,-500.0,0.00022465,3]
[348904231,1736868649684,-1551.26,0.00022465,3]
[348904232,1736868649694,-500.0,0.00022465,3]
[348904233,1736868649703,-500.0,0.00022465,3]
[348904234,1736868649713,-958.77,0.00022465,3]
[348904235,1736868649722,-500.0,0.00022465,3]
[348904236,1736868649732,-1475.28,0.00022465,3]
[348904237,1736868649743,-647.9,0.00022465,3]
[348904238,1736868649752,-581.2,0.00022465,3]
[348904239,1736868649762,-1195.31,0.00022465,3]
[348904240,1736868649773,-500.0,0.00022465,3]
[348904241,1736868649782,-500.0,0.00022465,3]
[348904242,1736868649791,-500.0,0.00022465,3]
[348904243,1736868649801,-500.0,0.00022465,3]
[348904244,1736868649811,-500.0,0.00022465,3]
[348904245,1736868649820,-500.0,0.00022465,3]
[348904246,1736868649830,-656.19,0.00022465,3]
[348904247,1736868649840,-2389.46,0.00022465,3]
[348904248,1736868649850,-636.07,0.00022465,3]
[348904249,1736868649861,-500.0,0.00022465,3]
[348904250,1736868649871,-2727.96,0.00022465,3]
[348904251,1736868649882,-500.0,0.00022465,3]
[348904252,1736868649892,-1358.32,0.00022465,3]
[348904253,1736868649902,-500.0,0.00022465,3]
[348904254,1736868649912,-1127.51,0.00022465,3]
[348904255,1736868649922,-1623.19,0.00022465,3]
[348904256,1736868649932,-500.0,0.00022465,3]
[348904257,1736868649942,-500.0,0.00022465,3]
[348904258,1736868649951,-1291.14,0.00022465,3]
[348904259,1736868649961,-1000.0,0.00022465,2]
[348904260,1736868649972,-1000.0,0.00022465,2]
[348904261,1736868649981,-1000.0,0.00022465,2]
[348904262,1736868649991,-1004.319089,0.00022465,2]
[348904263,1736868650001,-153.58,0.00022477,2]
[348904264,1736868650010,-153.0,0.00022479,2]
[348904265,1736868650020,-153.0,0.00022479,2]
[348904266,1736868650029,-153.0,0.00022479,2]
[348904267,1736868650039,-153.0,0.00022479,2]
[348904268,1736868650049,-153.0,0.00022479,2]
[348904269,1736868650060,-153.0,0.00022479,2]
[348904270,1736868650071,-153.0,0.00022479,2]
[348904271,1736868650081,-153.0,0.00022479,2]
[348904272,1736868650092,-153.0,0.00022479,2]
[348904273,1736868650101,-153.0,0.00022479,2]
[348904274,1736868650111,-153.0,0.00022479,2]
[348904275,1736868650124,-153.0,0.00022479,2]
[348904276,1736868650134,-153.0,0.00022479,2]
[348904277,1736868650144,-153.0,0.00022479,2]
[348904278,1736868650154,-153.0,0.00022479,2]
[348904279,1736868650165,-153.0,0.00022479,2]
[348904280,1736868650174,-153.0,0.00022479,2]
[348904281,1736868650184,-153.0,0.00022479,2]
[348904282,1736868650195,-153.0,0.00022479,2]
[348904283,1736868650204,-153.0,0.00022479,2]
[348904284,1736868650213,-153.0,0.00022479,2]
[348904285,1736868650222,-153.0,0.00022479,2]
[348904286,1736868650232,-153.0,0.00022479,2]
[348904287,1736868650241,-164.0,0.00022479,2]
[348904288,1736868650251,-153.0,0.00022479,2]
[348904289,1736868650260,-314.16,0.00022479,2]
[348904290,1736868650270,-153.0,0.00022479,2]
[348904291,1736868650280,-153.0,0.00022479,2]
[348904292,1736868650289,-153.0,0.00022479,2]
[348904293,1736868650299,-153.0,0.00022479,2]
[348904294,1736868650309,-153.0,0.00022479,2]
[348904295,1736868650319,-153.0,0.00022479,2]
[348904296,1736868650328,-153.0,0.00022479,2]
[348904297,1736868650338,-153.0,0.00022479,2]
[348904298,1736868650348,-155.0,0.00022479,2]
[348904299,1736868650358,-153.0,0.00022479,2]
[348904300,1736868650368,-155.0,0.00022479,2]
[348904301,1736868650378,-153.0,0.00022479,2]
[348904302,1736868650389,-155.0,0.00022479,2]
[348904303,1736868650398,-153.0,0.00022479,2]
[348904304,1736868650408,-155.0,0.00022479,2]
[348904305,1736868650418,-153.0,0.00022479,2]
[348904306,1736868650427,-155.0,0.00022479,2]
[348904307,1736868650437,-153.0,0.00022479,2]
[348904308,1736868650447,-155.0,0.00022479,2]